[Event "42nd WALTON Women-ch Bangladesh 2024"]
[Site "Dhaka"]
[Date "2024.05.27"]
[Round "8.6"]
[White "Tabassum Sadia, Shahjahan"]
[Black "Hamid, Rani"]
[Result "0-1"]
[ECO "E30"]
[WhiteElo "1567"]
[BlackElo "1863"]
[Annotator "NA RC"]
[PlyCount "108"]
[EventDate "2024.05.20"]
[EventType "tourn"]
[EventCountry "BAN"]
[SourceTitle "playchess.com"]
[Source "ChessBase"]
[SourceQuality "1"]
[TimeControl "40/5400+30:1800+30"]

1. d4 {[%emt 0:00:16]} Nf6 {[%emt 0:00:35]} 2. c4 {[%emt 0:00:03]} e6 {[%emt 0:00:03]} 3. Nc3 {[%emt 0:00:05]} Bb4 {[%emt 0:00:07]} 4. Bg5 {[%emt 0:00:34]} h6 {[%emt 0:00:16]} 5. Bf4 {[%emt 0:00:44]} O-O {[%emt 0:00:38]} 6. e3 {[%emt 0:00:05] E30: Nimzo-Indian: Leningrad Variation.} d5 {[%emt 0:00:29]} 7. a3 {[%emt 0:02:05]} Bxc3+ {[%emt 0:00:33]} 8. bxc3 {[%emt 0:00:09]} b6 {[%emt 0:00:55]} 9. Bd3 {[%emt 0:00:43]} Bb7 {[%emt 0:00:55]} 10. Nf3 {[%emt 0:00:20]} Nbd7 {[%emt 0:02:25]} 11. O-O {[%emt 0:02:34]} Re8 {[%emt 0:00:36]} 12. Be5 {[%emt 0:01:16]} Ne4 {[%emt 0:05:49]} 13. Qc2 {[%emt 0:04:43]} f5 {[%emt 0:03:55]} 14. cxd5 {[%emt 0:04:59]} exd5 {[%emt 0:00:18]} 15. c4 {[%emt 0:01:31]} c5 {[%emt 0:00:35]} 16. Bf4 {[%emt 0:02:27]} Rc8 {[%emt 0:01:09]} 17. Qb3 $2 {[%emt 0:04:51]} ({White should play} 17. Rac1 $11) 17... cxd4 {[%emt 0:01:31]} (17... g5 $142 18. Be5 g4 19. Bxe4 fxe4 (19... dxe4 20. Ne1 $17)) 18. Bxe4 {[%emt 0:05:46]} fxe4 {[%emt 0:01:36]} 19. Nxd4 {[%emt 0:00:27]} dxc4 {[%emt 0:01:34]} 20. Qa4 {[%emt 0:01:56]} a6 {[%emt 0:02:31]} 21. Qd1 {[%emt 0:01:48]} ({White should play} 21. Rfd1 $15) 21... Nf6 {[%emt 0:04:47]} 22. Qe2 {[%emt 0:02:21]} Rc5 {[%emt 0:02:31]} 23. Rfd1 {[%emt 0:02:50]} Qc8 {[%emt 0:03:23]} 24. Qb2 {[%emt 0:02:19]} b5 {[%emt 0:01:50]} 25. Nc2 {[%emt 0:01:56]} Rd8 {[%emt 0:09:29]} 26. Nb4 {[%emt 0:02:35]} a5 {[%emt 0:01:59]} 27. Nc2 {[%emt 0:01:19]} Rd3 {[%emt 0:02:43]} 28. Nd4 {[%emt 0:00:58]} Qg4 {[%emt 0:02:00]} 29. Rdc1 {[%emt 0:03:37]} Rd5 {[%emt 0:03:30]} 30. h3 {[%emt 0:01:02]} Qd7 {[%emt 0:01:31]} 31. a4 {[%emt 0:03:39]} Ba6 {[%emt 0:11:02]} 32. axb5 {[%emt 0:00:55]} Bxb5 {[%emt 0:00:07]} 33. Rxa5 {[%emt 0:46:07]} Ba4 {[%emt 0:03:21]} 34. Ra8+ {[%emt 0:00:00]} Kh7 {[%emt 0:00:02]} 35. Rxc4 {[%emt 0:00:00]} Rd1+ {[%emt 0:07:45]} 36. Kh2 {[%emt 0:00:00]} Ng4+ {[%emt 0:00:44]} 37. Kg3 {[%emt 0:00:00]} g5 {[%emt 0:01:43]} 38. Rh8+ {[%emt 0:00:00]} Kg6 {[%emt 0:02:49]} 39. Qb6+ {[%emt 0:00:00]} Kh5 {[%emt 0:00:01]} 40. Bb8 $18 {[%emt 0:00:00]} (40. hxg4+ $2 {leads to mate.} Qxg4+ 41. Kh2 Qh4#) (40. Rg8 $142 Bc6 41. Rxc6 (41. Nxc6 gxf4+ 42. exf4 Rg5 $18) 41... gxf4+ 42. exf4 Qg7 43. hxg4+ (43. Rxg7 Rd3+ 44. f3 Rxf3+ 45. Nxf3 Nf6 46. Rxf6 Rg5+ 47. Rxg5+ hxg5 48. Rh6#) 43... Qxg4+ 44. Rxg4 Rd3+ 45. f3 Rxf3+ 46. Nxf3 Rd6 47. Rc5+ Rd5 48. Rxd5#) 40... R5xd4 {[%emt 0:14:00]} 41. Rxd4 {[%emt 0:25:19]} Qf5 {[%emt 0:30:05]} 42. Rxh6+ {[%emt 0:04:51]} Nxh6 {[%emt 0:00:30]} 43. Rxa4 {[%emt 0:01:33]} Rd2 {[%emt 0:01:32]} 44. f4 {[%emt 0:00:00]} exf3 {[%emt 0:00:00]} 45. gxf3 {[%emt 0:00:00]} Qc2 {[%emt 0:00:00]} 46. h4 {[%emt 0:00:00]} Qxa4 {[%emt 0:00:00]} 47. e4 {[%emt 0:00:00]} Qc2 {[%emt 0:00:00]} 48. hxg5 {[%emt 0:00:00]} Rg2+ {[%emt 0:00:00]} 49. Kh3 {[%emt 0:00:00]} Rxg5 {[%emt 0:00:00]} 50. Bg3 {[%emt 0:00:00]} Qc8+ {[%emt 0:00:00]} 51. Kg2 {[%emt 0:00:00]} Rc5 {[%emt 0:00:00]} 52. Kf2 {[%emt 0:04:55]} Rc2+ {[%emt 0:00:00]} 53. Ke1 {[%emt 0:03:22]} Qc3+ {[%emt 0:13:06]} 54. Kf1 {[%emt 0:00:30]} Qxf3+ {[%emt 0:00:30]} 0-1

[Event "42nd WALTON Women-ch Bangladesh 2024"]
[Site "Dhaka"]
[Date "2024.05.28"]
[Round "9.1"]
[White "Hamid, Rani"]
[Black "Wadifa, Ahmed"]
[Result "0-1"]
[ECO "B59"]
[WhiteElo "1863"]
[BlackElo "1921"]
[Annotator "RC"]
[PlyCount "106"]
[EventDate "2024.05.20"]
[EventType "tourn"]
[EventCountry "BAN"]
[SourceTitle "playchess.com"]
[Source "ChessBase"]
[SourceQuality "1"]
[TimeControl "40/5400+30:1800+30"]

1. e4 {[%emt 0:00:03]} c5 {[%emt 0:00:04]} 2. Nf3 {[%emt 0:00:06]} d6 {[%emt 0:00:04]} 3. d4 {[%emt 0:00:23]} cxd4 {[%emt 0:00:07]} 4. Nxd4 {[%emt 0:00:06]} Nf6 {[%emt 0:00:09]} 5. Nc3 {[%emt 0:00:07]} Nc6 {[%emt 0:00:05]} 6. Be2 {[%emt 0:01:22]} e5 {[%emt 0:00:06]} 7. Nb3 {[%emt 0:00:18]} Be7 {[%emt 0:00:14]} 8. O-O {[%emt 0:00:57]} a5 {[%emt 0:00:36]} 9. a4 {[%emt 0:01:49]} O-O {[%emt 0:00:14]} 10. Bg5 {[%emt 0:01:05]} Be6 {[%emt 0:01:14]} 11. Bxf6 {[%emt 0:00:42]} Bxf6 {[%emt 0:00:07]} 12. Nd5 {[%emt 0:00:33]} Bg5 {[%emt 0:00:14]} 13. c3 {[%emt 0:01:59]} Ne7 {[%emt 0:07:42]} 14. Bc4 {[%emt 0:04:30]} Kh8 {[%emt 0:04:35]} 15. g3 {[%emt 0:01:26]} Rc8 {[%emt 0:03:33]} 16. Bb5 {[%emt 0:04:14]} Nxd5 {[%emt 0:07:55]} 17. exd5 {[%emt 0:00:09]} Bh3 {[%emt 0:00:06]} 18. Re1 {[%emt 0:00:11]} f5 {[%emt 0:00:32]} 19. Nd2 {[%emt 0:02:40]} Bg4 {[%emt 0:03:55]} 20. Be2 {[%emt 0:02:03]} Bxe2 {[%emt 0:00:19]} 21. Qxe2 {[%emt 0:00:14]} Rc5 {[%emt 0:00:48]} 22. Nb3 {[%emt 0:02:52]} Rc8 {[%emt 0:02:13]} 23. Qb5 {[%emt 0:04:52]} b6 {[%emt 0:01:52]} 24. Rad1 {[%emt 0:05:18]} h5 {[%emt 0:06:00]} 25. Qf1 {[%emt 0:02:01]} f4 {[%emt 0:20:38]} 26. Qh3 {[%emt 0:01:59]} g6 {[%emt 0:00:20]} 27. Re4 {[%emt 0:01:57]} Qf6 {[%emt 0:07:02]} 28. g4 {[%emt 0:03:41]} Rc7 {[%emt 0:01:39]} 29. f3 {[%emt 0:00:29]} Rh7 {[%emt 0:00:47]} 30. Rc4 {[%emt 0:03:36]} Qd8 {[%emt 0:15:32]} 31. Nd2 {[%emt 0:09:26]} Qd7 {[%emt 0:02:03]} 32. Ne4 {[%emt 0:00:28]} hxg4 {[%emt 0:00:03]} 33. Qxg4 {[%emt 0:00:18]} Qxg4+ {[%emt 0:00:17]} 34. fxg4 {[%emt 0:00:25]} Be7 {[%emt 0:00:11]} 35. Rc6 {[%emt 0:01:30]} Rh4 {[%emt 0:00:28]} 36. Nf2 {[%emt 0:00:52]} f3 {[%emt 0:01:57]} 37. Re1 {[%emt 0:00:35]} Rf4 {[%emt 0:00:45]} 38. Rxb6 {[%emt 0:01:48]} Rxa4 {[%emt 0:08:19]} 39. Rb8+ {[%emt 0:01:13]} Kg7 {[%emt 0:00:06]} 40. Rb7 {[%emt 0:00:19]} Kf8 {[%emt 0:00:15]} 41. h3 {[%emt 0:33:40]} Bg5 {[%emt 0:33:46]} 42. Rd7 {[%emt 0:02:22]} Bd2 {[%emt 0:00:00]} 43. Rd1 {[%emt 0:00:00]} Be3 {[%emt 0:00:00]} 44. Rxd6 {[%emt 0:00:00]} Rxh3 {[%emt 0:00:00]} 45. Re1 {[%emt 0:00:00]} Rxg4+ {[%emt 0:00:00]} 46. Kf1 {[%emt 0:00:00]} Bxf2 {[%emt 0:00:00]} 47. Rxe5 {[%emt 0:00:00]} Bc5 {[%emt 0:00:00]} 48. Rd8+ {[%emt 0:00:00]} Kg7 {[%emt 0:00:00]} 49. Ke1 {[%emt 0:00:00]} f2+ {[%emt 0:00:00]} 50. Ke2 {[%emt 0:00:00]} Rg1 {[%emt 0:00:00]} 51. Rd7+ {[%emt 0:00:00]} Kh6 {[%emt 0:00:00]} 52. Rf7 {[%emt 0:00:00]} Re1+ {[%emt 0:00:00]} 53. Kd2 {[%emt 0:00:00]} Rxe5 {[%emt 0:00:00]} 0-1

[Event "42nd WALTON Women-ch Bangladesh 2024"]
[Site "Dhaka"]
[Date "2024.05.28"]
[Round "9.2"]
[White "Neelava, Choudhury"]
[Black "Tabassum Sadia, Shahjahan"]
[Result "1-0"]
[ECO "B15"]
[WhiteElo "1778"]
[BlackElo "1567"]
[Annotator "NA RC"]
[PlyCount "125"]
[EventDate "2024.05.20"]
[EventType "tourn"]
[EventCountry "BAN"]
[SourceTitle "playchess.com"]
[Source "ChessBase"]
[SourceQuality "1"]
[TimeControl "40/5400+30:1800+30"]

1. e4 {[%emt 0:09:12]} c6 {[%emt 0:00:06]} 2. d4 {[%emt 0:00:04]} d5 {[%emt 0:00:17]} 3. Nc3 {[%emt 0:00:03]} dxe4 {[%emt 0:00:12]} 4. Nxe4 {[%emt 0:00:01]} Nf6 {[%emt 0:00:43]} 5. Nxf6+ {[%emt 0:00:08]} exf6 {[%emt 0:00:09]} 6. c3 {[%emt 0:00:03]} Bd6 {[%emt 0:00:15]} 7. Bd3 {[%emt 0:00:06]} O-O {[%emt 0:00:11]} 8. Qc2 {[%emt 0:00:01]} Re8+ {[%emt 0:00:20]} 9. Ne2 {[%emt 0:00:07]} h6 {[%emt 0:00:32]} 10. Be3 {[%emt 0:00:06]} Nd7 {[%emt 0:00:58]} 11. O-O-O {[%emt 0:01:18]} Qa5 {[%emt 0:00:50]} 12. Kb1 {[%emt 0:02:43]} b5 {[%emt 0:00:27]} 13. c4 {[%emt 0:09:41]} Nf8 {[%emt 0:07:58]} 14. cxb5 {[%emt 0:01:20]} Be6 {[%emt 0:02:34]} 15. Nc3 {[%emt 0:06:57]} cxb5 {[%emt 0:01:34]} 16. d5 {[%emt 0:06:49]} Bd7 {[%emt 0:01:17]} 17. Ne4 {[%emt 0:03:19]} Rec8 {[%emt 0:02:41]} 18. Qb3 {[%emt 0:01:45]} Be7 {[%emt 0:06:33]} 19. d6 {[%emt 0:03:34]} Bd8 {[%emt 0:14:41]} 20. Nc5 {[%emt 0:04:14]} Bc6 {[%emt 0:01:53]} 21. Rc1 {[%emt 0:09:46]} Nd7 {[%emt 0:03:43]} 22. Nxd7 {[%emt 0:04:17]} Bxd7 {[%emt 0:00:23]} 23. Be4 {[%emt 0:01:21]} Be6 {[%emt 0:02:52]} 24. Qa3 {[%emt 0:01:21]} Qxa3 {[%emt 0:07:58]} 25. bxa3 {[%emt 0:00:02]} Rxc1+ {[%emt 0:01:47]} 26. Rxc1 {[%emt 0:00:07]} Rc8 {[%emt 0:00:53]} 27. Rxc8 {[%emt 0:00:45]} Bxc8 {[%emt 0:00:19]} 28. Bxa7 {[%emt 0:02:09]} Be6 {[%emt 0:01:52]} 29. Bc6 {[%emt 0:00:16]} Bc4 {[%emt 0:02:28]} 30. Bb8 {[%emt 0:00:08]} f5 {[%emt 0:04:22]} 31. Bc7 {[%emt 0:00:36]} Bd3+ {[%emt 0:00:19]} 32. Kb2 {[%emt 0:00:09]} Bf6+ {[%emt 0:00:25]} 33. Kb3 {[%emt 0:00:09]} Be5 {[%emt 0:02:50]} 34. Kb4 {[%emt 0:01:48]} Bb1 {[%emt 0:03:04]} 35. Kxb5 {[%emt 0:00:23]} Bxa2 {[%emt 0:00:15]} 36. Kb6 {[%emt 0:00:06]} Bf6 {[%emt 0:11:56]} 37. d7 {[%emt 0:00:24]} Kf8 {[%emt 0:01:50]} 38. d8=R+ {[%emt 0:00:15]} Bxd8 {[%emt 0:01:40]} 39. Bxd8 {[%emt 0:00:36]} f6 {[%emt 0:00:42]} 40. a4 {[%emt 0:00:08]} Bc4 {[%emt 0:01:50]} 41. a5 {[%emt 0:30:06]} Kf7 {[%emt 0:30:27]} 42. Bb5 {[%emt 0:00:08]} Bd5 {[%emt 0:00:39]} 43. g3 {[%emt 0:00:06]} g5 {[%emt 0:01:21]} 44. a6 {[%emt 0:00:04]} h5 {[%emt 0:01:27]} 45. a7 {[%emt 0:00:05]} f4 {[%emt 0:01:46]} 46. Bc6 {[%emt 0:00:09]} Bxc6 {[%emt 0:01:51]} 47. Kxc6 {[%emt 0:00:02]} fxg3 {[%emt 0:00:13]} 48. fxg3 {[%emt 0:00:03]} Kg6 {[%emt 0:02:30]} 49. a8=R {[%emt 0:00:15]} f5 {[%emt 0:01:29]} 50. Kd5 {[%emt 0:01:04]} f4 {[%emt 0:01:39]} 51. Ra6+ {[%emt 0:01:03]} Kf5 {[%emt 0:00:13]} 52. h3 {[%emt 0:00:11]} g4 {[%emt 0:01:30]} 53. Rf6+ {[%emt 0:00:05]} Kg5 {[%emt 0:00:50]} 54. Rxf4+ {[%emt 0:00:31]} Kg6 {[%emt 0:00:36]} 55. hxg4 {[%emt 0:00:07]} hxg4 {[%emt 0:01:19]} 56. Rxg4+ {[%emt 0:00:05]} Kh7 {[%emt 0:00:21]} 57. Rh4+ {[%emt 0:00:22]} Kg7 {[%emt 0:00:36]} 58. g4 {[%emt 0:00:08]} Kg6 {[%emt 0:00:32]} 59. g5 {[%emt 0:00:12]} Kg7 {[%emt 0:00:20]} 60. Rg4 {[%emt 0:00:12]} Kh7 {[%emt 0:00:30]} 61. g6+ {[%emt 0:00:08]} Kg7 {[%emt 0:00:32]} 62. Bf6+ {[%emt 0:00:11]} Kf8 {[%emt 0:00:59]} 63. g7+ {[%emt 0:00:10]} 1-0

[Event "42nd WALTON Women-ch Bangladesh 2024"]
[Site "Dhaka"]
[Date "2024.05.28"]
[Round "9.3"]
[White "Kazi Zarin, Tasnim"]
[Black "Warsia, Khusbu"]
[Result "1-0"]
[ECO "C42"]
[WhiteElo "1854"]
[BlackElo "1905"]
[Annotator "RC"]
[PlyCount "104"]
[EventDate "2024.05.20"]
[EventType "tourn"]
[EventCountry "BAN"]
[SourceTitle "playchess.com"]
[Source "ChessBase"]
[SourceQuality "1"]
[TimeControl "40/5400+30:1800+30"]

1. e4 {[%emt 0:00:02]} e5 {[%emt 0:02:49]} 2. Nf3 {[%emt 0:00:36]} Nf6 {[%emt 0:00:08]} 3. Nxe5 {[%emt 0:00:35]} d6 {[%emt 0:00:07]} 4. Nf3 {[%emt 0:00:04]} Nxe4 {[%emt 0:00:07]} 5. c4 {[%emt 0:00:06]} Be7 {[%emt 0:04:50]} 6. Nc3 {[%emt 0:00:23]} Nxc3 {[%emt 0:00:31]} 7. dxc3 {[%emt 0:00:06]} Nd7 {[%emt 0:00:15]} 8. Bd3 {[%emt 0:02:36]} Nf6 {[%emt 0:00:25]} 9. h3 {[%emt 0:07:29]} c5 {[%emt 0:05:42]} 10. Bg5 {[%emt 0:08:14]} Be6 {[%emt 0:04:26]} 11. Qc2 {[%emt 0:09:09]} h6 {[%emt 0:00:52]} 12. Bxf6 {[%emt 0:02:35]} Bxf6 {[%emt 0:00:03]} 13. O-O-O {[%emt 0:00:30]} Qa5 {[%emt 0:05:45]} 14. a3 {[%emt 0:02:41]} O-O-O {[%emt 0:10:30]} 15. Bf5 {[%emt 0:06:24]} Kb8 {[%emt 0:00:37]} 16. Bxe6 {[%emt 0:01:07]} fxe6 {[%emt 0:00:06]} 17. Rhe1 {[%emt 0:00:05]} Rhe8 {[%emt 0:00:32]} 18. Re2 {[%emt 0:02:25]} Qa6 {[%emt 0:00:34]} 19. Qe4 {[%emt 0:04:06]} b5 {[%emt 0:15:01]} 20. cxb5 {[%emt 0:17:37]} Qxb5 {[%emt 0:00:03]} 21. Qc2 {[%emt 0:01:43]} c4 {[%emt 0:10:08]} 22. Nd4 {[%emt 0:05:22]} Bxd4 {[%emt 0:04:39]} 23. Rxd4 {[%emt 0:02:00]} e5 {[%emt 0:00:12]} 24. Rde4 {[%emt 0:03:59]} Rf8 {[%emt 0:13:23]} 25. R2e3 {[%emt 0:02:15]} Rd7 {[%emt 0:00:40]} 26. Qe2 {[%emt 0:01:35]} Rc7 {[%emt 0:01:43]} 27. Rf3 {[%emt 0:01:13]} Re8 {[%emt 0:02:54]} 28. Rg3 {[%emt 0:01:38]} Rb7 {[%emt 0:01:38]} 29. f4 {[%emt 0:02:56]} Rf8 {[%emt 0:03:20]} 30. Rf3 {[%emt 0:01:55]} exf4 {[%emt 0:00:26]} 31. Rfxf4 {[%emt 0:01:08]} Rc8 {[%emt 0:00:30]} 32. Rxc4 {[%emt 0:01:30]} Re8 {[%emt 0:01:30]} 33. Rfe4 {[%emt 0:00:31]} Qg5+ {[%emt 0:00:36]} 34. Kb1 {[%emt 0:01:09]} Qg6 {[%emt 0:02:47]} 35. Ka1 {[%emt 0:01:01]} Rxe4 {[%emt 0:01:30]} 36. Rxe4 {[%emt 0:00:24]} Qg5 {[%emt 0:05:20]} 37. Re8+ {[%emt 0:03:16]} Kc7 {[%emt 0:00:03]} 38. Qe7+ {[%emt 0:02:06]} Qxe7 {[%emt 0:00:54]} 39. Rxe7+ {[%emt 0:00:04]} Kc6 {[%emt 0:00:05]} 40. Rxb7 {[%emt 0:00:06]} Kxb7 {[%emt 0:00:05]} 41. Kb1 {[%emt 0:30:20]} Kc6 {[%emt 0:30:04]} 42. Kc2 {[%emt 0:00:06]} Kd5 {[%emt 0:00:33]} 43. Kd3 {[%emt 0:00:09]} g5 {[%emt 0:00:51]} 44. b3 {[%emt 0:01:49]} h5 {[%emt 0:00:23]} 45. c4+ {[%emt 0:01:50]} Ke5 {[%emt 0:00:10]} 46. g3 {[%emt 0:01:00]} h4 {[%emt 0:00:04]} 47. gxh4 {[%emt 0:00:16]} gxh4 {[%emt 0:00:06]} 48. b4 {[%emt 0:00:44]} a6 {[%emt 0:01:34]} 49. a4 {[%emt 0:00:29]} d5 {[%emt 0:00:47]} 50. c5 {[%emt 0:01:22]} d4 {[%emt 0:00:38]} 51. c6 {[%emt 0:00:46]} Kd6 {[%emt 0:00:05]} 52. b5 {[%emt 0:00:06]} Kd5 {[%emt 0:05:29]} 1-0

[Event "42nd WALTON Women-ch Bangladesh 2024"]
[Site "Dhaka"]
[Date "2024.05.28"]
[Round "9.4"]
[White "Sultana, Sharmin Shirin"]
[Black "Jannatul, Ferdous"]
[Result "1-0"]
[ECO "D93"]
[WhiteElo "1927"]
[BlackElo "1990"]
[Annotator "NA RC"]
[PlyCount "103"]
[EventDate "2024.05.20"]
[EventType "tourn"]
[EventCountry "BAN"]
[SourceTitle "playchess.com"]
[Source "ChessBase"]
[SourceQuality "1"]
[TimeControl "40/5400+30:1800+30"]

1. d4 {[%emt 0:00:03]} Nf6 {[%emt 0:03:09]} 2. c4 {[%emt 0:01:08]} g6 {[%emt 0:00:35]} 3. Nc3 {[%emt 0:00:29]} d5 {[%emt 0:00:49]} 4. Bf4 {[%emt 0:06:51]} Bg7 {[%emt 0:02:34]} 5. e3 {[%emt 0:00:52]} O-O {[%emt 0:00:50]} 6. Nf3 {[%emt 0:01:01]} a6 {[%emt 0:20:52]} (6... c5 $11 {keeps the balance.}) 7. Rc1 {[%emt 0:06:07]} c5 {[%emt 0:07:00] D93: Grünfeld: 4 Nf3 Bg7 5 Bf4 0-0 6 e3.} 8. dxc5 {[%emt 0:04:26]} Qa5 {[%emt 0:01:14]} (8... Be6 $142) 9. cxd5 {[%emt 0:09:16]} Rd8 {[%emt 0:07:48]} (9... Nbd7 $16 {might work better.}) 10. Bc4 {[%emt 0:09:14]} Nxd5 {[%emt 0:24:15]} 11. Bxd5 {[%emt 0:02:28]} e6 {[%emt 0:00:11]} 12. Bd6 {[%emt 0:10:55]} exd5 {[%emt 0:01:49]} 13. a3 {[%emt 0:10:42]} Be6 {[%emt 0:02:45]} 14. O-O {[%emt 0:03:54]} Nc6 {[%emt 0:06:34]} 15. Nd4 {[%emt 0:10:29]} Nxd4 {[%emt 0:06:36]} 16. exd4 {[%emt 0:00:02]} Rac8 {[%emt 0:00:07]} 17. Rb1 {[%emt 0:04:21]} Re8 {[%emt 0:05:14]} (17... Rxd6 $16 {was necessary.} 18. cxd6 Qb6) 18. b4 {[%emt 0:03:52]} Qd8 {[%emt 0:00:02]} 19. Qf3 {[%emt 0:03:10]} Qg5 {[%emt 0:06:48]} 20. Bf4 {[%emt 0:00:24]} Qf5 {[%emt 0:00:24]} 21. Rfd1 {[%emt 0:05:42]} h5 {[%emt 0:00:16]} 22. Rd2 {[%emt 0:03:37]} (22. b5 $142) 22... g5 {[%emt 0:00:59]} 23. Bd6 {[%emt 0:01:11]} Qg6 {[%emt 0:00:31]} 24. Rf1 {[%emt 0:00:54]} g4 {[%emt 0:00:30]} 25. Qd1 {[%emt 0:01:09]} Bh6 {[%emt 0:00:27]} 26. Re2 {[%emt 0:00:36]} h4 {[%emt 0:00:29]} 27. Rfe1 {[%emt 0:00:30]} Qf5 {[%emt 0:00:39]} 28. Re5 {[%emt 0:00:10]} Qg6 {[%emt 0:00:31]} 29. Nxd5 {[%emt 0:00:21]} Bg7 {[%emt 0:00:25]} 30. R5e4 {[%emt 0:00:53]} Bh6 {[%emt 0:00:33]} 31. Ne7+ {[%emt 0:00:32]} Rxe7 {[%emt 0:00:28]} 32. Bxe7 {[%emt 0:00:01]} Bf5 {[%emt 0:00:20]} 33. Re5 {[%emt 0:00:58]} Bf4 {[%emt 0:00:15]} 34. Bxh4 {[%emt 0:00:29]} Bxe5 {[%emt 0:00:43]} 35. Rxe5 {[%emt 0:00:13]} f6 {[%emt 0:00:20]} 36. Re7 {[%emt 0:00:39]} Qh6 {[%emt 0:00:48]} 37. Bg3 {[%emt 0:00:31]} Rd8 {[%emt 0:00:25]} 38. d5 {[%emt 0:00:44]} Kf8 {[%emt 0:00:42]} 39. Re3 {[%emt 0:00:18]} (39. Rxb7 $142 Qg6 40. c6) 39... Bd7 $2 {[%emt 0:00:32]} (39... Re8 40. Rc3 Kg7) 40. Bd6+ {[%emt 0:00:25]} Kg8 {[%emt 0:00:06]} 41. Qd2 {[%emt 0:30:47]} Qg6 {[%emt 0:30:30]} 42. Qd3 {[%emt 0:00:00]} Bf5 {[%emt 0:00:00]} 43. Qe2 {[%emt 0:00:00]} Qf7 {[%emt 0:00:00]} 44. f3 {[%emt 0:00:00]} g3 {[%emt 0:00:00]} 45. hxg3 $18 {[%emt 0:00:00]} Qxd5 {[%emt 0:00:00]} 46. Re7 {[%emt 0:00:00]} Qd4+ {[%emt 0:00:00]} 47. Kh2 {[%emt 0:00:00]} Rd7 {[%emt 0:00:00]} 48. Qa2+ {[%emt 0:00:00]} Kh8 {[%emt 0:00:00]} 49. Re8+ {[%emt 0:00:00]} Kg7 {[%emt 0:00:00]} 50. Qg8+ {[%emt 0:00:00]} Kh6 {[%emt 0:00:00]} 51. Bf4+ {[%emt 0:00:00]} Kh5 {[%emt 0:00:52]} 52. g4+ {[%emt 0:00:00]} 1-0

[Event "42nd WALTON Women-ch Bangladesh 2024"]
[Site "Dhaka"]
[Date "2024.05.28"]
[Round "9.5"]
[White "Noshin, Anjum"]
[Black "Nusrat Jahan, Alo"]
[Result "1-0"]
[ECO "B28"]
[WhiteElo "2025"]
[BlackElo "1850"]
[Annotator "RC"]
[PlyCount "75"]
[EventDate "2024.05.20"]
[EventType "tourn"]
[EventCountry "BAN"]
[SourceTitle "playchess.com"]
[Source "ChessBase"]
[SourceQuality "1"]
[TimeControl "40/5400+30:1800+30"]

1. e4 {[%emt 0:00:17]} c5 {[%emt 0:00:15]} 2. Nf3 {[%emt 0:00:32]} d6 {[%emt 0:00:05]} 3. d4 {[%emt 0:00:06]} cxd4 {[%emt 0:00:05]} 4. Nxd4 {[%emt 0:00:05]} Nf6 {[%emt 0:00:06]} 5. f3 {[%emt 0:00:37]} g6 {[%emt 0:00:20]} 6. c4 {[%emt 0:00:37]} Bg7 {[%emt 0:00:27]} 7. Nc3 {[%emt 0:00:38]} O-O {[%emt 0:00:58]} 8. Be3 {[%emt 0:00:30]} Nc6 {[%emt 0:02:26]} 9. Qd2 {[%emt 0:00:34]} a6 {[%emt 0:01:43]} 10. Be2 {[%emt 0:01:15]} Bd7 {[%emt 0:03:37]} 11. g4 {[%emt 0:05:25]} e6 {[%emt 0:09:12]} 12. h4 {[%emt 0:05:36]} Nxd4 {[%emt 0:08:21]} 13. Bxd4 {[%emt 0:00:23]} Bc6 {[%emt 0:00:55]} 14. O-O-O {[%emt 0:09:14]} b5 {[%emt 0:11:28]} 15. g5 {[%emt 0:07:24]} Nh5 {[%emt 0:09:57]} 16. Bxg7 {[%emt 0:02:24]} Kxg7 {[%emt 0:01:20]} 17. Qxd6 {[%emt 0:00:56]} Qb6 {[%emt 0:06:05]} 18. cxb5 {[%emt 0:06:49]} axb5 {[%emt 0:02:08]} 19. Qd4+ {[%emt 0:09:05]} Qxd4 {[%emt 0:00:54]} 20. Rxd4 {[%emt 0:00:06]} Nf4 {[%emt 0:04:44]} 21. Kb1 {[%emt 0:02:22]} Rfd8 {[%emt 0:05:42]} 22. Rxd8 {[%emt 0:07:36]} Rxd8 {[%emt 0:00:08]} 23. Bxb5 {[%emt 0:00:12]} Bxb5 {[%emt 0:01:58]} 24. Nxb5 {[%emt 0:00:05]} Rd2 {[%emt 0:01:34]} 25. Nc3 {[%emt 0:00:29]} e5 {[%emt 0:01:12]} 26. Rd1 {[%emt 0:02:17]} Rxd1+ {[%emt 0:01:33]} 27. Nxd1 {[%emt 0:00:05]} Kf8 {[%emt 0:00:04]} 28. Ne3 {[%emt 0:00:41]} Nd3 {[%emt 0:00:31]} 29. Nd5 {[%emt 0:04:24]} Ke8 {[%emt 0:03:49]} 30. b4 {[%emt 0:04:29]} Kd7 {[%emt 0:01:18]} 31. a4 {[%emt 0:00:57]} Kc6 {[%emt 0:00:36]} 32. Kc2 {[%emt 0:02:14]} Ne1+ {[%emt 0:02:09]} 33. Kc3 {[%emt 0:00:09]} Nxf3 {[%emt 0:00:32]} 34. b5+ {[%emt 0:00:47]} Kb7 {[%emt 0:00:49]} 35. a5 {[%emt 0:01:03]} Nd4 {[%emt 0:02:58]} 36. a6+ {[%emt 0:02:24]} Ka7 {[%emt 0:00:25]} 37. Kb4 {[%emt 0:00:10]} Ne6 {[%emt 0:02:22]} 38. Ka5 {[%emt 0:00:11]} 1-0

[Event "42nd WALTON Women-ch Bangladesh 2024"]
[Site "Dhaka"]
[Date "2024.05.28"]
[Round "9.6"]
[White "Ahmed, Walijah"]
[Black "Israt, Jahan Diba"]
[Result "1-0"]
[ECO "B76"]
[WhiteElo "1878"]
[BlackElo "1904"]
[Annotator "RC"]
[PlyCount "63"]
[EventDate "2024.05.20"]
[EventType "tourn"]
[EventCountry "BAN"]
[SourceTitle "playchess.com"]
[Source "ChessBase"]
[SourceQuality "1"]
[TimeControl "40/5400+30:1800+30"]

1. e4 {[%emt 0:00:05]} c5 {[%emt 0:00:05]} 2. Nf3 {[%emt 0:00:08]} d6 {[%emt 0:00:06]} 3. d4 {[%emt 0:00:08]} cxd4 {[%emt 0:00:05]} 4. Nxd4 {[%emt 0:00:07]} Nf6 {[%emt 0:00:05]} 5. Nc3 {[%emt 0:00:09]} g6 {[%emt 0:00:06]} 6. Be3 {[%emt 0:00:17]} Bg7 {[%emt 0:00:08]} 7. f3 {[%emt 0:00:11]} O-O {[%emt 0:00:09]} 8. Qd2 {[%emt 0:00:20]} Nc6 {[%emt 0:00:08]} 9. g4 {[%emt 0:00:28]} h5 {[%emt 0:00:18]} 10. gxh5 {[%emt 0:00:46]} Nxh5 {[%emt 0:00:19]} 11. O-O-O {[%emt 0:00:20]} Nxd4 {[%emt 0:01:25]} 12. Bxd4 {[%emt 0:00:08]} Be6 {[%emt 0:02:57]} 13. Bxg7 {[%emt 0:11:41]} Kxg7 {[%emt 0:00:40]} 14. Rg1 {[%emt 0:00:47]} Nf6 {[%emt 0:07:20]} 15. f4 {[%emt 0:08:02]} Bg4 {[%emt 0:08:03]} 16. Be2 {[%emt 0:02:09]} Bxe2 {[%emt 0:03:02]} 17. Qxe2 {[%emt 0:00:18]} Qe8 {[%emt 0:14:19]} 18. e5 {[%emt 0:21:51]} dxe5 {[%emt 0:02:00]} 19. fxe5 {[%emt 0:00:05]} Nh7 {[%emt 0:02:31]} 20. h4 {[%emt 0:01:22]} Rh8 {[%emt 0:01:26]} 21. h5 {[%emt 0:03:47]} Nf8 {[%emt 0:03:45]} 22. hxg6 {[%emt 0:06:51]} Nxg6 {[%emt 0:05:02]} 23. e6 {[%emt 0:04:02]} Rd8 {[%emt 0:14:30]} 24. Rdf1 {[%emt 0:04:32]} f6 {[%emt 0:02:57]} 25. Rg2 {[%emt 0:07:23]} Rh6 {[%emt 0:02:36]} 26. Rfg1 {[%emt 0:03:20]} a6 {[%emt 0:07:43]} 27. Qe4 {[%emt 0:02:08]} Rc8 {[%emt 0:12:17]} 28. Nd5 {[%emt 0:04:24]} Rc5 {[%emt 0:02:39]} 29. Nxe7 {[%emt 0:02:22]} Rg5 {[%emt 0:04:22]} 30. Nf5+ {[%emt 0:00:54]} Rxf5 {[%emt 0:00:56]} 31. Qxf5 {[%emt 0:00:16]} b5 {[%emt 0:00:41]} 32. e7 {[%emt 0:01:01]} 1-0